bitfinex/quotes_BTCUSD_20241205
["timestamp","ask_amount","ask_price","bid_price","bid_amount"]
[1733403519654,6e-07,103140.0,103130.0,1.27846121]
[1733403520176,6e-07,103140.0,103130.0,1.2627419]
[1733403521348,6e-07,103140.0,103130.0,1.00569896]
[1733403521565,6e-07,103140.0,103130.0,1.08216558]
[1733403521772,6e-07,103140.0,103130.0,1.01986259]
[1733403522438,6e-07,103140.0,103130.0,0.80602291]
[1733403524189,6e-07,103140.0,103130.0,1.04303207]
[1733403524408,6e-07,103140.0,103130.0,0.82919239]
[1733403526294,6e-07,103140.0,103130.0,0.74599239]
[1733403526509,0.09967665,103140.0,103130.0,0.42517469]
[1733403526692,6e-07,103140.0,103130.0,0.67582291]
[1733403527279,6e-07,103140.0,103130.0,0.66682291]
[1733403527490,6e-07,103140.0,103130.0,0.66782291]
[1733403527898,6e-07,103140.0,103130.0,0.66682291]
[1733403528339,6e-07,103140.0,103130.0,0.66782291]
[1733403529874,6e-07,103140.0,103130.0,0.66955771]
[1733403530107,0.09967665,103140.0,103130.0,0.41890949]
[1733403530546,0.09967665,103140.0,103130.0,0.5813096]
[1733403530771,6e-07,103140.0,103130.0,0.5813096]
[1733403532668,0.09967665,103140.0,103130.0,0.5813096]
[1733403532898,0.09967665,103140.0,103130.0,0.41890949]
[1733403535162,0.09957665,103140.0,103130.0,0.41890949]
[1733403535676,0.09957665,103140.0,103130.0,0.5813096]
[1733403535921,0.09957665,103140.0,103130.0,0.41890949]
[1733403536641,0.09957665,103140.0,103130.0,0.41790949]
[1733403536876,0.10857665,103140.0,103130.0,0.5813096]
[1733403537615,0.40248765,103140.0,103130.0,0.2496998]
[1733403537841,0.55248765,103140.0,103130.0,0.2496998]
[1733403538065,0.61488776,103140.0,103130.0,0.2496998]
[1733403538319,0.61488776,103140.0,103130.0,0.0027348]
[1733403539545,60.60588776,103140.0,103130.0,0.0017348]
[1733403539776,0.54140687,103140.0,103130.0,0.0017348]
[1733403539994,0.55040687,103140.0,103130.0,0.0027348]
[1733403540679,0.54140687,103140.0,103130.0,0.0017348]
[1733403541183,0.1,103120.0,103100.0,0.33958793]
[1733403541412,0.09967605,103110.0,103100.0,0.33958793]
[1733403541643,0.09967605,103110.0,103100.0,0.59896804]
[1733403542559,0.09967605,103110.0,103100.0,0.43656793]
[1733403543404,0.10867605,103110.0,103100.0,0.43756793]
[1733403545074,0.10867605,103110.0,103100.0,0.24359193]
[1733403545249,0.13116939,103110.0,103100.0,0.09798]
[1733403545448,0.10867605,103110.0,103100.0,0.09798]
[1733403546265,0.50264305,103110.0,103100.0,0.09798]
[1733403546802,1.90264305,103110.0,103100.0,0.09798]
[1733403547217,1.89364305,103110.0,103100.0,0.09698]
[1733403547627,1.90264305,103110.0,103100.0,0.09798]
[1733403547865,1.99156227,103110.0,103100.0,0.09698]
[1733403548969,2.0152601,103110.0,103100.0,0.09698]
[1733403549390,2.0242601,103110.0,103100.0,0.09698]
[1733403551878,0.10867605,103110.0,103100.0,0.09698]
[1733403552088,0.30264305,103110.0,103100.0,0.09698]
[1733403552300,0.46504316,103110.0,103100.0,0.09698]
[1733403552966,0.54014316,103110.0,103100.0,0.09698]
[1733403553187,0.56314316,103110.0,103100.0,0.09698]
[1733403553404,0.66106238,103110.0,103100.0,0.09698]
[1733403554267,0.66106238,103110.0,103100.0,0.0987162]
[1733403554467,0.66193048,103110.0,103100.0,0.0987162]
[1733403555554,0.66193048,103110.0,103100.0,0.07571466]
[1733403555753,0.66193048,103110.0,103100.0,0.0581282]
[1733403556540,0.65293048,103110.0,103100.0,0.0581282]
[1733403556737,0.67188923,103110.0,103100.0,0.0581282]
[1733403556944,0.294042,103070.0,103060.0,0.0017354]
[1733403557157,0.39371805,103070.0,103060.0,0.0017354]
[1733403557788,0.42719953,103070.0,103060.0,0.0017354]
[1733403557992,0.58959964,103070.0,103060.0,0.0017354]
[1733403558197,0.58959964,103070.0,103060.0,0.00232244]
[1733403558448,0.49371805,103070.0,103060.0,0.00232244]
[1733403559436,0.48811816,103070.0,103060.0,0.00232244]
[1733403559669,0.51689743,103070.0,103060.0,4.4e-07]
[1733403559867,0.2,103040.0,103030.0,0.0017364]
[1733403560036,0.62436243,103040.0,103030.0,0.00191193]
[1733403560240,0.1,103030.0,103020.0,0.0017344]
[1733403560410,0.48497343,103030.0,103020.0,0.0017344]
[1733403560620,0.48497343,103030.0,102980.0,0.1092794]
[1733403560621,0.194174,103000.0,102980.0,0.1092794]
[1733403560824,0.09967605,102990.0,102980.0,0.3034784]
[1733403561047,0.09967605,102990.0,102980.0,0.4976804]
[1733403562164,0.09985171,102990.0,102980.0,0.4976804]
[1733403562578,0.09985171,102990.0,102980.0,0.66008051]
[1733403562804,0.00917566,102990.0,102980.0,0.66008051]
[1733403563012,0.00917566,102990.0,102980.0,0.68308051]
[1733403563642,0.00017566,102990.0,102980.0,0.66008051]
[1733403564076,0.00917566,102990.0,102980.0,0.66008051]
[1733403564933,0.333513,103040.0,102980.0,0.46587851]
[1733403564934,0.233513,103040.0,102980.0,0.46587851]
[1733403565151,0.09967605,103030.0,103020.0,0.48353711]
[1733403565365,0.09967605,103030.0,103020.0,0.321137]
[1733403566234,0.09967605,103030.0,103020.0,0.127]
[1733403566689,0.13454934,103030.0,103020.0,0.321137]
[1733403566928,0.09967605,103030.0,103020.0,0.321137]
[1733403567130,0.12554934,103030.0,103020.0,0.127]
[1733403567355,0.194148,103020.0,103000.0,0.274364]
[1733403567602,0.13058267,103010.0,103000.0,0.274364]
[1733403567810,0.13058267,103010.0,103000.0,0.0802]
[1733403568026,0.32473767,103010.0,103000.0,0.0802]
[1733403568704,0.194174,103000.0,102990.0,0.0456]
[1733403568941,0.30894747,103000.0,102990.0,0.0456]
[1733403569183,0.33866555,103000.0,102990.0,0.0456]
[1733403569418,0.194193,102990.0,102980.0,0.0762]
[1733403569632,0.29386905,102990.0,102980.0,0.0762]
[1733403569839,0.29386905,102990.0,102980.0,0.07678632]
[1733403570248,0.32299287,102990.0,102980.0,0.07678632]
[1733403570683,0.42991209,102990.0,102980.0,0.00158632]
[1733403570894,0.32299287,102990.0,102980.0,0.00058632]
[1733403571097,0.09967605,102990.0,102980.0,0.19479832]
[1733403572589,0.10867605,102990.0,102980.0,0.19479832]
[1733403573676,0.10867605,102990.0,102980.0,0.35719843]
[1733403573906,0.009,102990.0,102980.0,0.43299843]
[1733403574142,0.009,102990.0,102980.0,0.48239843]
[1733403574396,0.05139445,103030.0,103000.0,0.194174]
[1733403574609,0.09967605,103020.0,103000.0,0.194174]
[1733403574812,0.09967605,103020.0,103010.0,0.194155]
[1733403575029,0.09967605,103020.0,103010.0,0.38831]
[1733403576534,0.10867605,103020.0,103010.0,0.38831]
[1733403577618,0.10803297,103020.0,103010.0,0.38831]
[1733403578042,0.10803297,103020.0,103010.0,0.46931]
[1733403578275,0.009,103020.0,103010.0,0.68051011]
[1733403579359,0.10867605,103020.0,103010.0,0.51811]
[1733403579768,0.09967605,103020.0,103010.0,0.51811]
[1733403579967,0.10867605,103020.0,103010.0,0.51811]
[1733403580214,0.10954505,103020.0,103010.0,0.51811]
[1733403582767,0.10954505,103020.0,103010.0,0.1298]
[1733403582996,0.13988876,103020.0,103010.0,0.1298]
[1733403583660,0.33402576,103020.0,103010.0,0.1298]
[1733403583868,1.83402576,103020.0,103010.0,0.1298]
[1733403584081,1.63988876,103020.0,103010.0,0.1298]
[1733403584372,0.13988876,103020.0,103010.0,0.1298]
[1733403584577,0.60040154,103020.0,102990.0,0.36343048]
[1733403584782,0.51684867,103010.0,102990.0,0.149238]
[1733403585203,0.32268467,103010.0,102990.0,0.149238]
[1733403586040,0.32268467,103010.0,102990.0,0.246328]
[1733403586747,0.51684867,103010.0,102990.0,0.246328]
[1733403587185,0.71101967,103010.0,102990.0,0.246328]
[1733403587186,0.51684867,103010.0,102990.0,0.246328]
[1733403587416,0.81793889,103010.0,102990.0,0.167528]
[1733403587642,0.62376789,103010.0,102990.0,0.167528]
[1733403587842,0.10867605,103010.0,102990.0,0.167528]
[1733403588059,0.10867605,103010.0,103000.0,0.194174]
[1733403588272,0.10867605,103010.0,102990.0,0.93248259]
[1733403588519,0.10867605,103010.0,103000.0,0.097087]
[1733403588740,0.10867605,103010.0,103000.0,0.291261]
[1733403589177,0.09967605,103010.0,103000.0,0.74815359]
[1733403589401,0.000869,103020.0,103010.0,0.194155]
[1733403589626,0.10054505,103020.0,103010.0,0.194155]
[1733403590103,0.29468305,103020.0,103000.0,0.39157948]
[1733403590321,0.09967605,103010.0,103000.0,0.177387]
[1733403590731,0.10867605,103010.0,103000.0,0.177387]
[1733403591405,0.1353573,103010.0,103000.0,0.177387]
[1733403591617,0.3303813,103010.0,103000.0,0.097087]
[1733403591834,0.49528141,103010.0,103000.0,0.097087]
[1733403592069,0.1387263,103010.0,103000.0,0.097087]
[1733403592301,1.60954505,103010.0,103000.0,0.097087]
[1733403592513,1.6387263,103010.0,103000.0,0.097087]
[1733403592724,0.1297263,103010.0,103000.0,0.097087]
[1733403593149,0.3328813,103010.0,103000.0,0.097087]
[1733403593393,1.8238813,103010.0,103000.0,0.097087]
[1733403593839,1.8328813,103010.0,103000.0,0.097087]
[1733403594248,1.99528141,103010.0,103000.0,0.097087]
[1733403594912,0.59528141,103010.0,103000.0,0.097087]
[1733403595136,0.49528141,103010.0,103000.0,0.097087]
[1733403595555,0.75560074,103010.0,103000.0,0.038836]
[1733403595761,0.1,102980.0,102970.0,0.0017374]
[1733403595992,0.58593057,102980.0,102970.0,0.0017374]
[1733403596441,0.48593057,102980.0,102970.0,0.0017374]
[1733403596662,0.50920872,102980.0,102970.0,0.0017374]
[1733403596873,0.60712794,102980.0,102970.0,0.0017374]
[1733403597084,0.61612794,102980.0,102970.0,0.0017374]
[1733403599075,0.5965139,102980.0,102970.0,0.0017374]
[1733403599502,0.59618995,102980.0,102970.0,0.0017374]
[1733403599718,0.49618995,102980.0,102970.0,0.0017374]
[1733403599967,0.59410917,102980.0,102970.0,0.0017374]
[1733403600212,0.59288917,102980.0,102970.0,0.0017374]
[1733403600723,0.49496995,102980.0,102970.0,0.0017374]
[1733403600950,0.46374421,102980.0,102970.0,0.0017374]
[1733403601269,0.1071321,102980.0,102970.0,0.0017374]
[1733403601446,0.46374421,102980.0,102970.0,0.0017374]
[1733403601721,0.2071321,102980.0,102970.0,0.0017374]
[1733403601943,0.4013441,102980.0,102970.0,0.0017374]
[1733403602658,0.1071321,102980.0,102970.0,0.0017374]
[1733403603086,0.1071321,102980.0,102970.0,0.1959684]
[1733403603299,0.00745605,102980.0,102970.0,0.35836851]
[1733403603507,0.00745605,102980.0,102970.0,0.43546851]
[1733403603730,0.0014564,103010.0,102990.0,0.194178]
[1733403603949,0.0014564,103010.0,102990.0,0.388359]
[1733403603950,0.09967605,103000.0,102990.0,0.388359]
[1733403604592,0.09967605,103000.0,102970.0,0.5163894]
[1733403604806,0.09967605,103000.0,102970.0,0.5163784]
[1733403605027,0.09967605,103000.0,102970.0,0.5163794]
[1733403605238,0.1392048,103000.0,102970.0,0.1279374]
[1733403605462,0.03002493,102990.0,102970.0,0.1279374]
[1733403605671,0.09967605,102980.0,102970.0,0.1279374]
[1733403605890,0.10867605,102980.0,102970.0,0.1289374]
[1733403606342,0.09967605,102980.0,102970.0,0.1279374]
[1733403606571,0.09967605,102980.0,102970.0,0.1289374]
[1733403607067,0.09967605,102980.0,102970.0,0.1279374]
[1733403607315,0.1373405,102980.0,102970.0,0.1289374]
[1733403607548,0.009,102980.0,102970.0,0.3231684]
[1733403609216,0.009,102980.0,102970.0,0.63556851]
[1733403609741,0.009,102980.0,102970.0,0.4731684]
[1733403611871,0.10867605,102980.0,102970.0,0.4731684]
[1733403612607,0.009,102980.0,102970.0,0.4731684]
[1733403612857,0.009,102980.0,102970.0,0.63556851]
[1733403613802,0.0014564,103010.0,103000.0,0.194174]
[1733403614043,0.10113245,103010.0,103000.0,0.194174]
[1733403615943,0.10113245,103010.0,102990.0,0.582545]
[1733403616163,0.09967605,103000.0,102990.0,0.388362]
[1733403616673,0.0014564,103010.0,102990.0,0.582546]
[1733403616921,0.10113245,103010.0,103000.0,0.194174]
[1733403617390,0.11013245,103010.0,103000.0,0.195174]
[1733403617631,0.10113245,103010.0,103000.0,0.271174]
[1733403618351,0.10113245,103010.0,103000.0,0.63317411]
[1733403618352,0.0014564,103010.0,103000.0,0.63317411]
[1733403618814,0.0014564,103010.0,103000.0,0.470774]
[1733403619101,0.11013245,103010.0,103000.0,0.470774]
[1733403619558,0.11913245,103010.0,103000.0,0.471774]
[1733403619787,0.11013245,103010.0,103000.0,0.470774]
[1733403620261,0.11213245,103010.0,103000.0,0.471774]
[1733403620484,0.10313245,103010.0,103000.0,0.470774]
[1733403620713,0.10313245,103010.0,103000.0,0.471774]
[1733403620954,0.10513245,103010.0,103000.0,0.471774]
[1733403621476,0.0054564,103010.0,103000.0,0.63417411]
[1733403621703,0.0054564,103010.0,103000.0,0.471774]
[1733403622649,0.0014564,103010.0,103000.0,0.470774]
[1733403622947,0.11013245,103010.0,103000.0,0.345174]
[1733403623465,0.10113245,103010.0,103000.0,0.344174]
[1733403623691,0.11013245,103010.0,103000.0,0.345174]
[1733403627742,1.61013245,103010.0,103000.0,0.345174]
[1733403629349,0.11013245,103010.0,103000.0,0.345174]
[1733403631948,0.46668756,103010.0,103000.0,0.151]
[1733403632190,0.59068968,103010.0,103000.0,0.151]
[1733403632428,0.55428745,103010.0,103000.0,0.151]
[1733403632884,0.54528745,103010.0,103000.0,0.15]
[1733403633346,0.55428745,103010.0,103000.0,0.151]
[1733403634489,0.64205281,103010.0,103000.0,0.151]
[1733403634931,0.64240748,103010.0,103000.0,0.151]
[1733403635418,0.69640171,103010.0,103000.0,0.151]
[1733403636108,0.68740171,103010.0,103000.0,0.15]
[1733403636330,0.69640171,103010.0,103000.0,0.15]
[1733403636764,0.68740171,103010.0,103000.0,0.15]
[1733403636993,0.69640171,103010.0,103000.0,0.15]
[1733403637242,0.69368179,103010.0,103000.0,0.15]
[1733403637470,0.71991071,103010.0,103000.0,0.15]
[1733403637717,0.1,102990.0,102980.0,0.0017382]
[1733403637939,0.593219,102990.0,102980.0,0.0017382]
[1733403638453,0.53536916,102990.0,102980.0,0.0017382]
[1733403638674,0.562319,102990.0,102980.0,0.0017382]
[1733403638890,0.53536916,102990.0,102980.0,0.0017382]
[1733403639391,0.54436916,102990.0,102980.0,0.0017382]
[1733403639621,0.53536916,102990.0,102980.0,0.0017382]
[1733403640069,0.13167605,102990.0,102980.0,0.1959502]
[1733403640306,0.12267605,102990.0,102980.0,0.1959502]
[1733403640786,0.13167605,102990.0,102980.0,0.1959502]
[1733403641495,0.13167605,102990.0,102980.0,0.00126779]
[1733403641496,0.32586905,102990.0,102980.0,0.00126779]
[1733403642406,0.31686905,102990.0,102980.0,0.00126779]
[1733403642931,0.32586905,102990.0,102980.0,0.00126779]
[1733403643157,0.47586905,102990.0,102980.0,0.00126779]
[1733403643381,0.73826916,102990.0,102980.0,0.00126779]
[1733403643612,0.57586905,102990.0,102980.0,0.00126779]
[1733403643834,0.47586905,102990.0,102980.0,0.00126779]
[1733403644056,0.57586905,102990.0,102980.0,0.00126779]
[1733403644525,0.67378827,102990.0,102980.0,0.00126779]
[1733403645022,0.57586905,102990.0,102980.0,0.00126779]
[1733403645247,1.88167605,102990.0,102980.0,0.19547979]
[1733403645475,0.28167605,102990.0,102980.0,0.19547979]
[1733403647612,0.182,102990.0,102980.0,0.35885088]
[1733403647839,0.182,102990.0,102980.0,0.3578799]
[1733403648062,0.182,102990.0,102980.0,0.1237802]
[1733403648290,0.182,102990.0,102980.0,0.46268307]
[1733403648511,0.0539,102990.0,102980.0,0.50851211]
[1733403648777,0.0244564,103010.0,103000.0,0.194174]
[1733403649000,0.12413245,103010.0,103000.0,0.194174]
[1733403650155,0.12413245,103010.0,102990.0,0.388362]
[1733403650156,0.13313245,103010.0,102990.0,0.388362]
[1733403650374,0.0334564,103010.0,103000.0,0.194174]
[1733403650598,0.13313245,103010.0,103000.0,0.194174]
[1733403650833,0.32728745,103010.0,102990.0,0.582547]
[1733403651048,0.09967605,103000.0,102990.0,0.388362]
[1733403652922,0.10867605,103000.0,102990.0,0.389362]
[1733403653149,0.10867605,103000.0,102990.0,0.38607768]
[1733403654263,0.09967605,103000.0,102990.0,0.38507768]
[1733403655588,0.10867605,103000.0,102990.0,0.38607768]
[1733403656469,0.009,103000.0,102990.0,0.38607768]
[1733403658600,0.009,103000.0,102990.0,0.54847779]
[1733403659341,0.0014564,103010.0,103000.0,0.194174]
[1733403659579,0.0014564,103010.0,103000.0,0.19514477]
[1733403660244,0.0014564,103010.0,103000.0,0.35754488]
[1733403660488,0.0014564,103010.0,103000.0,0.43767411]
[1733403660918,0.0104564,103010.0,103000.0,0.43767411]
[1733403661173,0.0104564,103010.0,103000.0,0.48287411]
[1733403661392,0.000869,103020.0,103010.0,0.58265511]
[1733403661623,0.40779505,103080.0,103050.0,0.194071]
[1733403661861,0.09967605,103070.0,103060.0,0.194052]
[1733403662785,0.0998523,103070.0,103060.0,0.194052]
[1733403663243,0.0998523,103070.0,103060.0,0.194061]
[1733403663468,0.1088523,103070.0,103050.0,0.388136]
[1733403663705,0.1088523,103070.0,103060.0,0.194061]
[1733403663938,0.0998523,103070.0,103060.0,0.194061]
[1733403664221,0.00017625,103070.0,103060.0,0.194061]
[1733403664457,0.00917625,103070.0,103060.0,0.194061]
[1733403664921,0.00917625,103070.0,103060.0,0.35743132]
[1733403665137,0.00917625,103070.0,103060.0,0.35646111]
[1733403666287,0.00017625,103070.0,103060.0,0.35646111]
[1733403666504,0.00017625,103070.0,103060.0,0.53343716]
[1733403666760,0.00917625,103070.0,103060.0,0.53343716]
[1733403666977,0.00017625,103070.0,103060.0,0.53343716]
[1733403667186,0.00017625,103070.0,103060.0,0.57883716]
[1733403667401,0.00917625,103070.0,103060.0,0.57983716]
[1733403667624,0.00917625,103070.0,103060.0,0.57883716]
[1733403667843,0.00917625,103070.0,103060.0,0.57892516]
[1733403668075,0.01617625,103070.0,103060.0,0.57992516]
[1733403669876,0.01617625,103070.0,103060.0,0.67695516]
[1733403670540,0.01617625,103070.0,103060.0,0.83935527]
[1733403670832,0.01617625,103070.0,103060.0,0.93935527]
[1733403671269,0.01617625,103070.0,103060.0,0.77695516]
[1733403671493,0.01617625,103070.0,103060.0,0.93935527]
[1733403671718,0.01617625,103070.0,103060.0,0.77695516]
[1733403672830,0.01617625,103070.0,103060.0,0.67695516]
[1733403673050,0.01617625,103070.0,103060.0,0.77695516]
[1733403673963,0.01617625,103070.0,103060.0,0.87695516]
[1733403674182,0.01704505,103070.0,103060.0,1.03935527]
[1733403674896,0.01704505,103070.0,103060.0,0.87695516]
[1733403675780,0.01704505,103070.0,103060.0,1.03935527]
[1733403675994,5e-08,103070.0,103060.0,1.03935527]
[1733403676213,0.0008681,103100.0,103060.0,1.03935527]
[1733403676214,0.0008681,103100.0,103070.0,0.1]
[1733403676426,0.0008681,103100.0,103090.0,0.1294347]
[1733403676651,0.0008681,103100.0,103090.0,0.3234397]
[1733403677086,0.0008681,103100.0,103090.0,0.4204427]
[1733403677743,0.0098681,103100.0,103090.0,0.4214427]
[1733403678418,0.0098681,103100.0,103090.0,0.292008]
[1733403678628,0.0098681,103100.0,103090.0,0.45440811]
[1733403680882,0.0008681,103100.0,103090.0,0.45340811]
[1733403681359,0.0008681,103100.0,103090.0,0.45440811]
[1733403681577,0.0008681,103100.0,103090.0,0.45340811]
[1733403681832,0.0008681,103100.0,103090.0,0.70308416]
[1733403682056,0.0008681,103100.0,103090.0,0.80308416]
[1733403683386,0.0008681,103100.0,103090.0,0.72228183]
[1733403683643,0.0008681,103100.0,103090.0,0.45440811]
[1733403684071,0.0008681,103100.0,103090.0,0.75308416]
[1733403684293,0.0008681,103100.0,103090.0,0.80028416]
[1733403684989,0.0008681,103100.0,103090.0,0.95028416]
[1733403685218,0.0008681,103100.0,103090.0,1.18968427]
[1733403685219,1e-07,103100.0,103090.0,1.18968427]
[1733403685432,0.0008688,103120.0,103100.0,0.587972]
[1733403685673,0.0008688,103120.0,103110.0,0.61941281]
[1733403685891,0.0008688,103120.0,103110.0,0.35636711]
[1733403686128,0.0008688,103120.0,103110.0,0.45335111]
[1733403687039,0.0014561,103120.0,103110.0,0.45335111]
[1733403687266,0.0014561,103120.0,103110.0,0.65302716]
[1733403688390,0.0014561,103120.0,103110.0,0.73342716]
[1733403688616,0.0014561,103120.0,103110.0,0.83342716]
[1733403688878,0.0014561,103120.0,103110.0,1.25492331]
[1733403688879,1e-07,103120.0,103110.0,1.25492331]
[1733403689559,1e-07,103120.0,103110.0,1.26392331]
[1733403690498,1e-07,103120.0,103110.0,1.26366988]
[1733403692300,1e-07,103120.0,103110.0,1.00126977]
[1733403692521,1e-07,103120.0,103110.0,0.68792716]
[1733403692763,1e-07,103120.0,103110.0,0.64242716]
[1733403693441,1e-07,103120.0,103110.0,0.299951]
[1733403693667,0.29362415,103120.0,103110.0,0.105984]
[1733403694351,0.12967615,103120.0,103110.0,0.105984]
[1733403694569,0.37202415,103120.0,103110.0,0.105984]
[1733403694792,0.37202415,103120.0,103110.0,0.096984]
[1733403695006,0.37202415,103120.0,103110.0,0.097984]
[1733403696136,0.68442426,103120.0,103110.0,0.097984]
[1733403696364,0.68442426,103120.0,103090.0,0.15]
[1733403696365,0.393986,103100.0,103090.0,0.15]
[1733403696589,1.99366205,103100.0,103090.0,0.15]
[1733403696868,1.89366205,103100.0,103090.0,0.15]
[1733403697614,1.79366205,103100.0,103090.0,0.15]
[1733403697859,1.90166205,103100.0,103090.0,0.151]
[1733403698310,1.94145271,103100.0,103090.0,0.151]
[1733403698778,1.84145271,103100.0,103090.0,0.151]
[1733403699004,0.10767605,103100.0,103090.0,0.151]
[1733403699223,0.10767605,103100.0,103090.0,0.345005]
[1733403699465,0.10767605,103100.0,103090.0,0.442005]
[1733403699937,0.008,103100.0,103090.0,0.60440511]
[1733403700841,0.008,103100.0,103090.0,0.442005]
[1733403701060,0.1808674,103120.0,103090.0,0.441005]
[1733403701284,0.09967605,103110.0,103100.0,0.193976]
[1733403701969,0.09967605,103110.0,103100.0,0.096993]
[1733403702203,0.29364305,103110.0,103100.0,0.096993]
[1733403702680,0.29364305,103110.0,103100.0,0.097993]
[1733403702681,0.30164305,103110.0,103100.0,0.097993]
[1733403703156,0.10767605,103110.0,103100.0,0.097993]
[1733403703415,0.10767605,103110.0,103100.0,0.291979]
[1733403703657,0.10767605,103110.0,103100.0,0.097993]
[1733403704592,0.10767605,103110.0,103100.0,0.291979]
[1733403706029,0.008,103110.0,103100.0,0.66879736]
[1733403706266,0.008,103110.0,103100.0,0.66767302]
[1733403706720,0.10767605,103110.0,103100.0,0.50527291]
[1733403706945,0.30164305,103110.0,103100.0,0.09686866]
[1733403707666,0.29364305,103110.0,103100.0,0.09586866]
[1733403707887,0.29364305,103110.0,103100.0,0.28985466]
[1733403708107,0.09967605,103110.0,103100.0,0.29085466]
[1733403708360,0.10467605,103110.0,103100.0,0.29085466]
[1733403708602,0.29864305,103110.0,103100.0,0.09686866]
[1733403708843,0.29364305,103110.0,103100.0,0.09586866]
[1733403709089,0.29864305,103110.0,103100.0,0.09860326]
[1733403709554,0.29364305,103110.0,103100.0,0.09760326]
[1733403709851,0.3803868,103110.0,103100.0,0.09760326]
[1733403710081,0.29364305,103110.0,103100.0,0.09760326]
[1733403710998,1.80264305,103110.0,103100.0,0.09860326]
[1733403711723,0.10867605,103110.0,103100.0,0.09860326]
[1733403711976,0.10867605,103110.0,103100.0,0.29258926]
[1733403712417,0.009,103110.0,103100.0,0.29258926]
[1733403714317,0.10867605,103110.0,103100.0,0.29258926]
[1733403715255,0.009,103110.0,103100.0,0.29258926]
[1733403715725,0.30264305,103110.0,103100.0,0.09860326]
[1733403715980,0.10867605,103110.0,103100.0,0.09860326]
[1733403716243,0.10867605,103110.0,103100.0,0.29258926]
[1733403720402,0.10867605,103110.0,103100.0,0.09860326]
[1733403720648,0.1384979,103110.0,103100.0,0.09860326]
[1733403721088,0.30351055,103110.0,103100.0,0.09860326]
[1733403721354,0.10954355,103110.0,103100.0,0.29258926]
[1733403722286,0.0098675,103110.0,103100.0,0.29258926]
[1733403722524,0.0098675,103110.0,103100.0,0.53288937]
[1733403722787,0.0098675,103110.0,103100.0,0.39030011]
[1733403723039,0.0098675,103110.0,103100.0,0.63178611]
[1733403723264,0.0098675,103110.0,103100.0,0.469386]
[1733403723704,0.0098675,103110.0,103100.0,0.566376]
[1733403724188,0.0008675,103110.0,103100.0,0.566376]
[1733403724416,0.10954355,103110.0,103100.0,0.518876]
[1733403724921,0.10954355,103110.0,103100.0,0.440976]
[1733403725147,0.10954355,103110.0,103100.0,0.24699]
[1733403725369,0.30351055,103110.0,103100.0,0.24699]
[1733403725888,0.40142977,103110.0,103100.0,0.24699]
[1733403726148,0.30351055,103110.0,103100.0,0.24699]
[1733403726373,0.40351055,103110.0,103100.0,0.2365336]
[1733403726643,0.58891066,103110.0,103100.0,0.09699]
[1733403726887,0.53851066,103110.0,103100.0,0.09699]
[1733403727095,0.63642988,103110.0,103100.0,0.09699]
[1733403727316,0.62742988,103110.0,103100.0,0.09699]
[1733403728015,0.73642988,103110.0,103100.0,0.09799]
[1733403728267,0.73642988,103110.0,103100.0,0.09699]
[1733403728268,0.72742988,103110.0,103100.0,0.09699]
[1733403728484,0.62742988,103110.0,103100.0,0.09699]
[1733403728995,0.66487545,103110.0,103100.0,0.001]
[1733403729251,0.53851066,103110.0,103100.0,0.001]
[1733403729495,0.68851066,103110.0,103100.0,0.001]
[1733403729736,0.62611055,103110.0,103100.0,0.001]
[1733403729964,0.78851066,103110.0,103100.0,0.001]
[1733403730183,0.78642988,103110.0,103100.0,0.001]
[1733403730410,0.78851066,103110.0,103100.0,0.001]
[1733403730637,0.68851066,103110.0,103100.0,0.001]
[1733403731801,0.70542925,103110.0,103100.0,0.001]
[1733403733240,0.70542925,103110.0,103100.0,0.002735]
[1733403733485,0.80334847,103110.0,103100.0,0.00238068]
[1733403734419,0.59342914,103110.0,103100.0,0.00238068]
[1733403734644,0.83891066,103110.0,103100.0,0.00238068]
[1733403734873,0.47651055,103110.0,103100.0,0.00238068]
[1733403735097,0.28254355,103110.0,103100.0,0.00238068]
[1733403735318,0.28254355,103110.0,103100.0,0.19636668]
[1733403735578,0.47651055,103110.0,103100.0,0.00238068]
[1733403735811,0.28254355,103110.0,103100.0,0.00238068]
[1733403736042,0.28254355,103110.0,103100.0,0.19636668]
[1733403737679,0.28254355,103110.0,103100.0,0.27796668]
[1733403738794,0.27354355,103110.0,103100.0,0.277321]
[1733403739018,0.28254355,103110.0,103100.0,0.278321]
[1733403739945,0.27354355,103110.0,103100.0,0.277321]
[1733403740169,0.28254355,103110.0,103100.0,0.278321]
[1733403741100,0.57442977,103110.0,103100.0,0.084335]
[1733403741312,0.47651055,103110.0,103100.0,0.084335]
[1733403741531,0.28254355,103110.0,103100.0,0.278321]
[1733403741754,0.47651055,103110.0,103100.0,0.278321]
[1733403742043,0.47651055,103110.0,103100.0,0.084335]
[1733403742255,0.28254355,103110.0,103100.0,0.278321]
[1733403743172,0.63891066,103110.0,103100.0,0.002735]
[1733403743623,0.47651055,103110.0,103100.0,0.002735]
[1733403744042,0.28254355,103110.0,103100.0,0.002735]
[1733403744269,0.25954355,103110.0,103100.0,0.002735]
[1733403744495,0.45351055,103110.0,103100.0,0.002735]
[1733403744713,0.55142977,103110.0,103100.0,0.002735]
[1733403744941,0.25954355,103110.0,103100.0,0.002735]
[1733403745163,0.25954355,103110.0,103100.0,0.196721]
[1733403745375,0.45351055,103110.0,103100.0,0.002735]
[1733403746784,0.25954355,103110.0,103100.0,0.196721]
[1733403747013,0.1598675,103110.0,103100.0,0.483791]
[1733403747223,0.1598675,103110.0,103100.0,0.48282111]
[1733403747932,0.1598675,103110.0,103100.0,0.58282111]
[1733403748642,0.1598675,103110.0,103100.0,0.67981111]
[1733403748883,0.1508675,103110.0,103100.0,0.89507071]
[1733403749114,0.1508675,103110.0,103100.0,0.6326706]
[1733403749335,0.46768404,103110.0,103100.0,0.223425]
[1733403749558,0.25554355,103110.0,103100.0,0.417411]
[1733403750273,1.75554355,103110.0,103100.0,0.417411]
[1733403750530,0.25054355,103110.0,103100.0,0.416411]
[1733403750752,0.25054355,103110.0,103100.0,0.174125]
[1733403750983,1.95351055,103110.0,103100.0,0.175125]
[1733403751201,1.75954355,103110.0,103100.0,0.175125]
[1733403751431,1.75954355,103110.0,103100.0,0.53248097]
[1733403751432,0.1598675,103110.0,103100.0,0.53248097]
[1733403751658,0.1598675,103110.0,103100.0,0.53151111]
[1733403752392,0.1598675,103110.0,103100.0,0.57791111]
[1733403752639,0.0817675,103110.0,103100.0,1.11684676]
[1733403752894,0.009,103110.0,103100.0,0.90058716]
[1733403753561,0.009,103110.0,103100.0,0.89958716]
[1733403753784,0.0308674,103120.0,103110.0,0.343967]
[1733403754027,0.0308674,103120.0,103110.0,0.50636711]